{"text_format":"3","workbook":"xlsx","n_sheets":6,"sheets":["Zapisnik o pozivima prodavača","Podaci za kontakt klijenata","Prije poziva","Prvi poziv","Podaci o prodaji","Dodatne informacije"],"not_rendered":{"defined_names":14},"read":"whole","date_system":"1900"}

{"sheet":"Zapisnik o pozivima prodavača","index":0,"n_rows":13,"n_cols":7,"rows_kept":13}
[null," Naziv tvrtke"]
[null,"Zapisnik o pozivima prodavača"]
[null,"Broj poziva","Klijent","Tvrtka","Datum","Vrijeme","Napomene"]
[null,1,"Vjekoslav Jelić",{"$f":"IF(ZapisnikPozivaProdavaca[[#This Row],[Klijent]]=\"\",\"\",IFERROR(VLOOKUP(ZapisnikPozivaProdavaca[[#This Row],[Klijent]],PodaciZaKontaktKlijenata[],2,0),\"Not Found\"))","v":"Proseware, Inc."},{"$f":"TODAY()-5","v":"2017-10-07"},"08:30:00"]
[null,2,"Edi Kolar",{"$f":"IF(ZapisnikPozivaProdavaca[[#This Row],[Klijent]]=\"\",\"\",IFERROR(VLOOKUP(ZapisnikPozivaProdavaca[[#This Row],[Klijent]],PodaciZaKontaktKlijenata[],2,0),\"Not Found\"))","v":"Litware, Inc."},{"$f":"TODAY()-5","v":"2017-10-07"},"09:00:00"]
[null,3,"Blanka Katić",{"$f":"IF(ZapisnikPozivaProdavaca[[#This Row],[Klijent]]=\"\",\"\",IFERROR(VLOOKUP(ZapisnikPozivaProdavaca[[#This Row],[Klijent]],PodaciZaKontaktKlijenata[],2,0),\"Not Found\"))","v":"Northwind Traders"},"2017-10-07","09:30:00"]
[null,4,"Teo Marinović",{"$f":"IF(ZapisnikPozivaProdavaca[[#This Row],[Klijent]]=\"\",\"\",IFERROR(VLOOKUP(ZapisnikPozivaProdavaca[[#This Row],[Klijent]],PodaciZaKontaktKlijenata[],2,0),\"Not Found\"))","v":"Lucerne Publishing"},"2017-10-07","10:00:00"]
[null,5,"Tomislav Kralj",{"$f":"IF(ZapisnikPozivaProdavaca[[#This Row],[Klijent]]=\"\",\"\",IFERROR(VLOOKUP(ZapisnikPozivaProdavaca[[#This Row],[Klijent]],PodaciZaKontaktKlijenata[],2,0),\"Not Found\"))","v":"Margie's Travel"},"2017-10-07","10:30:00"]
[null,6,"Vjekoslav Jelić",{"$f":"IF(ZapisnikPozivaProdavaca[[#This Row],[Klijent]]=\"\",\"\",IFERROR(VLOOKUP(ZapisnikPozivaProdavaca[[#This Row],[Klijent]],PodaciZaKontaktKlijenata[],2,0),\"Not Found\"))","v":"Proseware, Inc."},{"$f":"TODAY()-3","v":"2017-10-09"},"11:00:00"]
[null,7,"Edi Kolar",{"$f":"IF(ZapisnikPozivaProdavaca[[#This Row],[Klijent]]=\"\",\"\",IFERROR(VLOOKUP(ZapisnikPozivaProdavaca[[#This Row],[Klijent]],PodaciZaKontaktKlijenata[],2,0),\"Not Found\"))","v":"Litware, Inc."},{"$f":"TODAY()-3","v":"2017-10-09"},"11:30:00"]
[null,8,"Vjekoslav Jelić",{"$f":"IF(ZapisnikPozivaProdavaca[[#This Row],[Klijent]]=\"\",\"\",IFERROR(VLOOKUP(ZapisnikPozivaProdavaca[[#This Row],[Klijent]],PodaciZaKontaktKlijenata[],2,0),\"Not Found\"))","v":"Proseware, Inc."},{"$f":"TODAY()-1","v":"2017-10-11"},"12:00:00"]
[null,9,"Tomislav Kralj",{"$f":"IF(ZapisnikPozivaProdavaca[[#This Row],[Klijent]]=\"\",\"\",IFERROR(VLOOKUP(ZapisnikPozivaProdavaca[[#This Row],[Klijent]],PodaciZaKontaktKlijenata[],2,0),\"Not Found\"))","v":"Margie's Travel"},{"$f":"TODAY()-1","v":"2017-10-11"},"12:30:00"]
[null,10,"Tomislav Kralj",{"$f":"IF(ZapisnikPozivaProdavaca[[#This Row],[Klijent]]=\"\",\"\",IFERROR(VLOOKUP(ZapisnikPozivaProdavaca[[#This Row],[Klijent]],PodaciZaKontaktKlijenata[],2,0),\"Not Found\"))","v":"Margie's Travel"},{"$f":"TODAY()","v":"2017-10-12"},"13:00:00"]

{"sheet":"Podaci za kontakt klijenata","index":1,"n_rows":8,"n_cols":8,"rows_kept":8}
[null,{"$f":"NazivTvrtke","v":" Naziv tvrtke"}]
[null,"Podaci za kontakt klijenata"]
[null,"Ime i prezime klijenta","Naziv tvrtke","Adresa","Grad, poštanski broj","Primarni telefon","Sekundarni telefon","E-pošta"]
[null,"Edi Kolar","Litware, Inc.","Korzo 29","Zagreb, 10000","(541) 555-0135","(541) 555-0136","edi@litwareinc.com"]
[null,"Teo Marinović","Lucerne Publishing","Jadranska avenija 77","Rijeka, 51000","(425) 555-0198","(425) 555-0199","teo@lucernepublishing.com"]
[null,"Tomislav Kralj","Margie's Travel","Ulica Nikole Tesle 41","Slavonski Brod, 51000","(888) 555-0125","(888) 555-0126","tomislav@margiestravel.com"]
[null,"Blanka Katić","Northwind Traders","Osječka 104","Ogulin, 47300","(541) 555-0175","(541) 555-0176","blanka@northwindtraders.com"]
[null,"Vjekoslav Jelić","Proseware, Inc.","Frankopanska 55","Zadar, 23000","(509) 555-0150","(509) 555-0151","vjekoslav@proseware.com"]

{"sheet":"Prije poziva","index":2,"n_rows":13,"n_cols":3,"rows_kept":13}
[null,{"$f":"NazivTvrtke","v":" Naziv tvrtke"}]
[null,"Kontrolni popis za pozive prodavača"]
[null,"Potvrdni okvir","Prije poziva"]
[null,null,"Pregled povijesti klijenta"]
[null,null,"Pregled povijesti klijentova poslodavca"]
[null,null,"Pregled prioriteta i strategije prodaje"]
[null,null,"Dodaj stavku"]
[null,null,"Dodaj stavku"]
[null,null,"Dodaj stavku"]
[null,null,"Dodaj stavku"]
[null,null,"Dodaj stavku"]
[null,null,"Dodaj stavku"]
[null,null,"Dodaj stavku"]

{"sheet":"Prvi poziv","index":3,"n_rows":13,"n_cols":3,"rows_kept":13}
[null,{"$f":"NazivTvrtke","v":" Naziv tvrtke"}]
[null,"Kontrolni popis za pozive prodavača"]
[null,"Potvrdni okvir","Prvi poziv"]
[null,null,"Upućivanje poziva odgovarajućoj osobi"]
[null,null,"Jasno predstavljanje"]
[null,null,"Dodaj stavku"]
[null,null,"Dodaj stavku"]
[null,null,"Dodaj stavku"]
[null,null,"Dodaj stavku"]
[null,null,"Dodaj stavku"]
[null,null,"Dodaj stavku"]
[null,null,"Dodaj stavku"]
[null,null,"Dodaj stavku"]

{"sheet":"Podaci o prodaji","index":4,"n_rows":13,"n_cols":3,"rows_kept":13}
[null,{"$f":"NazivTvrtke","v":" Naziv tvrtke"}]
[null,"Kontrolni popis za pozive prodavača"]
[null,"Potvrdni okvir","Podaci o prodaji"]
[null,null,"Jasno i zanimljivo predstavljanje proizvoda/usluge"]
[null,null,"Pokrivenost najvažnijih područja"]
[null,null,"Spominjanje web-prisutnosti (npr. web-mjesta, društvenih mreža)"]
[null,null,"Dodaj stavku"]
[null,null,"Dodaj stavku"]
[null,null,"Dodaj stavku"]
[null,null,"Dodaj stavku"]
[null,null,"Dodaj stavku"]
[null,null,"Dodaj stavku"]
[null,null,"Dodaj stavku"]

{"sheet":"Dodatne informacije","index":5,"n_rows":13,"n_cols":3,"rows_kept":13}
[null,{"$f":"NazivTvrtke","v":" Naziv tvrtke"}]
[null,"Kontrolni popis za pozive prodavača"]
[null,"Potvrdni okvir","Dodatne informacije"]
[null,null,"Podaci za kontakt klijenata"]
[null,null,"Osobni podaci klijenta"]
[null,null,"Preferencije klijenta"]
[null,null,"Novi termin za poziv?"]
[null,null,"Prodaja uspješna?"]
[null,null,"Dodaj stavku"]
[null,null,"Dodaj stavku"]
[null,null,"Dodaj stavku"]
[null,null,"Dodaj stavku"]
[null,null,"Dodaj stavku"]